[Event "December 12 Early 2023"]
[Site "https://www.chess.com"]
[Date "2023.12.12"]
[Round "4"]
[White "KacperKacprzak"]
[Black "Recuero Guerra, Javier"]
[Result "1-0"]
[Board "124"]
[TimeControl "180+1"]
[BlackFideId "2254085"]
[WhiteElo "2671"]
[BlackElo "2429"]
[BlackTeam "ESP"]
[WhiteClock "0:00:09"]
[BlackClock "0:00:00"]

1. Nf3 {[%clk 0:03:00]}  Nf6 {[%clk 0:02:55]} 2. d4 {[%clk 0:02:59]}  d6 {[%clk 0:02:53]} 3. Bg5 {[%clk 0:02:56]}  Nbd7 {[%clk 0:02:50]} 4. Nbd2 {[%clk 0:02:52]}  e5 {[%clk 0:02:50]} 5. e3 {[%clk 0:02:51]}  Be7 {[%clk 0:02:49]} 6. c3 {[%clk 0:02:49]}  O-O {[%clk 0:02:48]} 7. Qc2 {[%clk 0:02:42]}  Re8 {[%clk 0:02:39]} 8. Be2 {[%clk 0:02:41]}  e4 {[%clk 0:02:35]} 9. Bxf6 {[%clk 0:02:26]}  exf3 {[%clk 0:01:58]} 10. Bxe7 {[%clk 0:02:26]}  fxg2 {[%clk 0:01:49]} 11. Rg1 {[%clk 0:02:26]}  Qxe7 {[%clk 0:01:45]} 12. Rxg2 {[%clk 0:02:26]}  Nf6 {[%clk 0:01:39]} 13. O-O-O {[%clk 0:02:26]}  Ne4 {[%clk 0:01:35]} 14. Bd3 {[%clk 0:02:20]}  d5 {[%clk 0:01:30]} 15. Rdg1 {[%clk 0:02:18]}  g6 {[%clk 0:01:29]} 16. Nf3 {[%clk 0:02:03]}  Bh3 {[%clk 0:01:23]} 17. Rg3 {[%clk 0:01:48]}  Bf5 {[%clk 0:01:04]} 18. R3g2 {[%clk 0:01:38]}  Bh3 {[%clk 0:01:02]} 19. Rg3 {[%clk 0:01:38]}  Bf5 {[%clk 0:01:02]} 20. h4 {[%clk 0:01:22]}  Nxg3 {[%clk 0:00:57]} 21. Bxf5 {[%clk 0:01:20]}  Nxf5 {[%clk 0:00:55]} 22. Qxf5 {[%clk 0:01:21]}  Qe4 {[%clk 0:00:51]} 23. Qh3 {[%clk 0:01:18]}  Qe6 {[%clk 0:00:36]} 24. Qh2 {[%clk 0:01:15]}  Qd6 {[%clk 0:00:29]} 25. Qh1 {[%clk 0:01:12]}  h5 {[%clk 0:00:23]} 26. Ne5 {[%clk 0:01:11]}  Kh7 {[%clk 0:00:22]} 27. Nxf7 {[%clk 0:01:09]}  Qf6 {[%clk 0:00:19]} 28. Ng5+ {[%clk 0:01:09]}  Kh8 {[%clk 0:00:19]} 29. Qg2 {[%clk 0:01:00]}  c6 {[%clk 0:00:17]} 30. Qg3 {[%clk 0:01:00]}  Rad8 {[%clk 0:00:15]} 31. Kd2 {[%clk 0:00:54]}  c5 {[%clk 0:00:14]} 32. Nf3 {[%clk 0:00:51]}  cxd4 {[%clk 0:00:13]} 33. cxd4 {[%clk 0:00:49]}  Rf8 {[%clk 0:00:12]} 34. Ke2 {[%clk 0:00:44]}  Qf5 {[%clk 0:00:11]} 35. Ne5 {[%clk 0:00:40]}  Qc2+ {[%clk 0:00:10]} 36. Kf1 {[%clk 0:00:41]}  Qb1+ {[%clk 0:00:07]} 37. Kg2 {[%clk 0:00:41]}  Qe4+ {[%clk 0:00:07]} 38. Kh2 {[%clk 0:00:39]}  g5 {[%clk 0:00:05]} 39. Qxg5 {[%clk 0:00:19]}  Rxf2+ {[%clk 0:00:04]} 40. Kg3 {[%clk 0:00:19]}  Rg8 {[%clk 0:00:02]} 41. Kxf2 {[%clk 0:00:13]}  Rxg5 {[%clk 0:00:02]} 42. Rxg5 {[%clk 0:00:11]}  Qxh4+ {[%clk 0:00:02]} 43. Kf3 {[%clk 0:00:12]}  Qh3+ {[%clk 0:00:02]} 44. Kf4 {[%clk 0:00:12]}  Qh4+ {[%clk 0:00:02]} 45. Kf5 {[%clk 0:00:12]}  Qh3+ {[%clk 0:00:03]} 46. Kf6 {[%clk 0:00:11]}  Qf1+ {[%clk 0:00:03]} 47. Kg6 {[%clk 0:00:10]}  h4 {[%clk 0:00:02]} 48. Kh6 {[%clk 0:00:09]}  Qf8+ {[%clk 0:00:01]} 49. Kh5 {[%clk 0:00:09]}  Qe8+ {[%clk 0:00:01]} 50. Kxh4 {[%clk 0:00:09]}  Qf8 {[%clk 0:00:00]} 51. Ng6+ {[%clk 0:00:09]} 1-0

[Event "December 12 Early 2023"]
[Site "https://www.chess.com"]
[Date "2023.12.12"]
[Round "4"]
[White "DHLT216"]
[Black "Hoffmann, Asa"]
[Result "1-0"]
[Board "125"]
[TimeControl "180+1"]
[BlackFideId "2001470"]
[WhiteElo "2630"]
[BlackElo "2424"]
[BlackTeam "USA"]
[WhiteClock "0:00:07"]
[BlackClock "0:00:13"]

1. d4 {[%clk 0:03:00]}  Nf6 {[%clk 0:02:56]} 2. c4 {[%clk 0:03:00]}  c5 {[%clk 0:02:56]} 3. d5 {[%clk 0:03:00]}  e5 {[%clk 0:02:56]} 4. Nc3 {[%clk 0:02:59]}  d6 {[%clk 0:02:56]} 5. e4 {[%clk 0:02:59]}  Be7 {[%clk 0:02:56]} 6. g3 {[%clk 0:02:45]}  O-O {[%clk 0:02:55]} 7. Bg2 {[%clk 0:02:46]}  Na6 {[%clk 0:02:55]} 8. Nge2 {[%clk 0:02:45]}  Ne8 {[%clk 0:02:55]} 9. O-O {[%clk 0:02:45]}  Bd7 {[%clk 0:02:55]} 10. f4 {[%clk 0:02:41]}  Bf6 {[%clk 0:02:55]} 11. Be3 {[%clk 0:02:37]}  Nec7 {[%clk 0:02:54]} 12. a4 {[%clk 0:02:24]}  Nb4 {[%clk 0:02:54]} 13. Qd2 {[%clk 0:02:24]}  b6 {[%clk 0:02:53]} 14. f5 {[%clk 0:02:13]}  Qe7 {[%clk 0:02:50]} 15. g4 {[%clk 0:02:13]}  h6 {[%clk 0:02:49]} 16. Ng3 {[%clk 0:02:13]}  Bg5 {[%clk 0:02:47]} 17. Bxg5 {[%clk 0:02:11]}  Qxg5 {[%clk 0:02:46]} 18. Qe2 {[%clk 0:02:01]}  a6 {[%clk 0:02:42]} 19. Nh5 {[%clk 0:01:53]}  b5 {[%clk 0:02:35]} 20. axb5 {[%clk 0:01:49]}  axb5 {[%clk 0:02:34]} 21. cxb5 {[%clk 0:01:49]}  Rxa1 {[%clk 0:02:22]} 22. Rxa1 {[%clk 0:01:48]}  g6 {[%clk 0:02:22]} 23. Ng3 {[%clk 0:01:46]}  Rb8 {[%clk 0:02:17]} 24. Ra7 {[%clk 0:01:43]}  Qd8 {[%clk 0:02:08]} 25. Qd2 {[%clk 0:01:27]}  Kg7 {[%clk 0:02:06]} 26. f6+ {[%clk 0:01:22]}  Kh7 {[%clk 0:02:03]} 27. g5 {[%clk 0:01:21]}  Ra8 {[%clk 0:01:52]} 28. Rxa8 {[%clk 0:00:56]}  Qxa8 {[%clk 0:01:47]} 29. b6 {[%clk 0:00:54]}  Nb5 {[%clk 0:01:40]} 30. Nxb5 {[%clk 0:00:49]}  Bxb5 {[%clk 0:01:40]} 31. h4 {[%clk 0:00:41]}  Qa6 {[%clk 0:01:36]} 32. h5 {[%clk 0:00:41]}  Qxb6 {[%clk 0:01:33]} 33. hxg6+ {[%clk 0:00:40]}  fxg6 {[%clk 0:01:32]} 34. f7 {[%clk 0:00:37]}  Qd8 {[%clk 0:01:20]} 35. Qf2 {[%clk 0:00:34]}  Qf8 {[%clk 0:01:14]} 36. Qf6 {[%clk 0:00:33]}  Nd3 {[%clk 0:01:10]} 37. Nf5 {[%clk 0:00:27]}  Nf4 {[%clk 0:01:01]} 38. Nxd6 {[%clk 0:00:16]}  hxg5 {[%clk 0:00:55]} 39. Nxb5 {[%clk 0:00:15]}  Ne2+ {[%clk 0:00:50]} 40. Kf2 {[%clk 0:00:13]}  Nd4 {[%clk 0:00:50]} 41. Nxd4 {[%clk 0:00:13]}  cxd4 {[%clk 0:00:50]} 42. Qxe5 {[%clk 0:00:12]}  Qxf7+ {[%clk 0:00:50]} 43. Ke2 {[%clk 0:00:13]}  Qa7 {[%clk 0:00:46]} 44. d6 {[%clk 0:00:10]}  Qa6+ {[%clk 0:00:45]} 45. Kf2 {[%clk 0:00:11]}  Qd3 {[%clk 0:00:43]} 46. Qe7+ {[%clk 0:00:10]}  Kh6 {[%clk 0:00:42]} 47. Qf8+ {[%clk 0:00:10]}  Kh7 {[%clk 0:00:40]} 48. Kg1 {[%clk 0:00:09]}  Qe3+ {[%clk 0:00:38]} 49. Kh2 {[%clk 0:00:09]}  d3 {[%clk 0:00:35]} 50. d7 {[%clk 0:00:09]}  d2 {[%clk 0:00:22]} 51. d8=Q {[%clk 0:00:07]}  Qf4+ {[%clk 0:00:22]} 52. Qxf4 {[%clk 0:00:07]}  gxf4 {[%clk 0:00:21]} 53. Qxd2 {[%clk 0:00:07]}  g5 {[%clk 0:00:13]} 54. Kh3 {[%clk 0:00:07]} 1-0

[Event "December 12 Early 2023"]
[Site "https://www.chess.com"]
[Date "2023.12.12"]
[Round "4"]
[White "Thorfinnsson, Bjorn"]
[Black "Porozhnyak, Maya"]
[Result "1-0"]
[Board "126"]
[TimeControl "180+1"]
[WhiteFideId "2300982"]
[BlackFideId "34115843"]
[WhiteElo "2620"]
[BlackElo "2419"]
[WhiteTeam "ISL"]
[BlackTeam "RUS"]
[WhiteClock "0:01:41"]
[BlackClock "0:00:23"]

1. d4 {[%clk 0:02:44]}  c5 {[%clk 0:02:59]} 2. c3 {[%clk 0:02:44]}  cxd4 {[%clk 0:02:56]} 3. cxd4 {[%clk 0:02:43]}  g6 {[%clk 0:02:56]} 4. Nc3 {[%clk 0:02:43]}  Bg7 {[%clk 0:02:57]} 5. Nf3 {[%clk 0:02:44]}  Nf6 {[%clk 0:02:57]} 6. Bg5 {[%clk 0:02:44]}  O-O {[%clk 0:02:55]} 7. e3 {[%clk 0:02:45]}  d6 {[%clk 0:02:53]} 8. Bd3 {[%clk 0:02:45]}  a6 {[%clk 0:02:53]} 9. Qc2 {[%clk 0:02:45]}  b5 {[%clk 0:02:52]} 10. a3 {[%clk 0:02:45]}  Bb7 {[%clk 0:02:52]} 11. h4 {[%clk 0:02:45]}  Nbd7 {[%clk 0:02:53]} 12. h5 {[%clk 0:02:46]}  e5 {[%clk 0:02:27]} 13. hxg6 {[%clk 0:02:45]}  fxg6 {[%clk 0:02:03]} 14. Qb3+ {[%clk 0:02:29]}  Rf7 {[%clk 0:01:50]} 15. dxe5 {[%clk 0:02:26]}  Nxe5 {[%clk 0:01:44]} 16. Nxe5 {[%clk 0:02:26]}  dxe5 {[%clk 0:01:45]} 17. O-O-O {[%clk 0:02:26]}  Qc7 {[%clk 0:01:40]} 18. Bxf6 {[%clk 0:02:21]}  Bxf6 {[%clk 0:01:39]} 19. Kb1 {[%clk 0:02:15]}  Bxg2 {[%clk 0:01:27]} 20. Rh2 {[%clk 0:02:05]}  Bf3 {[%clk 0:01:25]} 21. Rg1 {[%clk 0:02:04]}  Kg7 {[%clk 0:01:15]} 22. Rxh7+ {[%clk 0:01:57]}  Kxh7 {[%clk 0:01:10]} 23. Bxg6+ {[%clk 0:01:57]}  Kh8 {[%clk 0:01:03]} 24. Bxf7 {[%clk 0:01:56]}  e4 {[%clk 0:00:47]} 25. Qe6 {[%clk 0:01:51]}  Qe5 {[%clk 0:00:32]} 26. Qh3+ {[%clk 0:01:48]}  Bh5 {[%clk 0:00:32]} 27. Qxh5+ {[%clk 0:01:49]}  Qxh5 {[%clk 0:00:32]} 28. Bxh5 {[%clk 0:01:49]}  Rd8 {[%clk 0:00:30]} 29. Nxe4 {[%clk 0:01:48]}  Bg7 {[%clk 0:00:31]} 30. f4 {[%clk 0:01:47]}  Rd5 {[%clk 0:00:30]} 31. Bf3 {[%clk 0:01:46]}  Rd3 {[%clk 0:00:31]} 32. Re1 {[%clk 0:01:42]}  Rb3 {[%clk 0:00:31]} 33. Re2 {[%clk 0:01:42]}  a5 {[%clk 0:00:30]} 34. Nc5 {[%clk 0:01:42]}  a4 {[%clk 0:00:24]} 35. Nxb3 {[%clk 0:01:41]}  axb3 {[%clk 0:00:23]} 36. e4 {[%clk 0:01:41]} 1-0

[Event "December 12 Early 2023"]
[Site "https://www.chess.com"]
[Date "2023.12.12"]
[Round "4"]
[White "Rojas Alarcon, Julian Antonio"]
[Black "Rios Escobar, Adan"]
[Result "0-1"]
[Board "127"]
[TimeControl "180+1"]
[WhiteFideId "5107407"]
[BlackFideId "3403645"]
[WhiteElo "2620"]
[BlackElo "2417"]
[WhiteTeam "MEX"]
[BlackTeam "CHI"]
[WhiteClock "0:00:00"]
[BlackClock "0:00:02"]

1. d4 {[%clk 0:03:00]}  Nf6 {[%clk 0:02:57]} 2. c4 {[%clk 0:02:59]}  g6 {[%clk 0:02:56]} 3. Nc3 {[%clk 0:02:56]}  d5 {[%clk 0:02:57]} 4. cxd5 {[%clk 0:02:45]}  Nxd5 {[%clk 0:02:58]} 5. e4 {[%clk 0:02:45]}  Nxc3 {[%clk 0:02:55]} 6. bxc3 {[%clk 0:02:46]}  c5 {[%clk 0:02:56]} 7. Bc4 {[%clk 0:02:45]}  Bg7 {[%clk 0:02:56]} 8. Ne2 {[%clk 0:02:45]}  O-O {[%clk 0:02:53]} 9. Be3 {[%clk 0:02:45]}  Nc6 {[%clk 0:02:53]} 10. O-O {[%clk 0:02:44]}  Na5 {[%clk 0:02:53]} 11. Bd3 {[%clk 0:02:43]}  b6 {[%clk 0:02:53]} 12. f4 {[%clk 0:02:39]}  Qc7 {[%clk 0:02:36]} 13. Rc1 {[%clk 0:02:33]}  Bg4 {[%clk 0:02:26]} 14. Qe1 {[%clk 0:02:33]}  Rad8 {[%clk 0:02:10]} 15. Qh4 {[%clk 0:02:32]}  Qd7 {[%clk 0:01:57]} 16. d5 {[%clk 0:02:27]}  c4 {[%clk 0:01:25]} 17. Nd4 {[%clk 0:02:08]}  cxd3 {[%clk 0:01:23]} 18. h3 {[%clk 0:02:08]}  Be2 {[%clk 0:01:22]} 19. Nxe2 {[%clk 0:02:03]}  dxe2 {[%clk 0:01:23]} 20. Rfe1 {[%clk 0:02:04]}  Nc4 {[%clk 0:01:22]} 21. Bf2 {[%clk 0:02:04]}  e6 {[%clk 0:01:10]} 22. f5 {[%clk 0:01:55]}  exf5 {[%clk 0:01:05]} 23. exf5 {[%clk 0:01:56]}  Qxf5 {[%clk 0:01:04]} 24. Qxc4 {[%clk 0:01:55]}  Rfe8 {[%clk 0:01:04]} 25. Rxe2 {[%clk 0:01:54]}  Rxe2 {[%clk 0:01:03]} 26. Qxe2 {[%clk 0:01:55]}  Qxd5 {[%clk 0:01:02]} 27. c4 {[%clk 0:01:48]}  Qd2 {[%clk 0:00:57]} 28. Qxd2 {[%clk 0:01:44]}  Rxd2 {[%clk 0:00:58]} 29. c5 {[%clk 0:01:40]}  Bb2 {[%clk 0:00:25]} 30. Rc4 {[%clk 0:01:29]}  Be5 {[%clk 0:00:16]} 31. g4 {[%clk 0:01:18]}  bxc5 {[%clk 0:00:13]} 32. Rxc5 {[%clk 0:01:16]}  Bd4 {[%clk 0:00:06]} 33. Bxd4 {[%clk 0:01:08]}  Rxd4 {[%clk 0:00:07]} 34. Ra5 {[%clk 0:01:09]}  Rd7 {[%clk 0:00:07]} 35. Kg2 {[%clk 0:01:09]}  Kg7 {[%clk 0:00:07]} 36. Ra6 {[%clk 0:01:10]}  h5 {[%clk 0:00:06]} 37. gxh5 {[%clk 0:01:09]}  gxh5 {[%clk 0:00:07]} 38. Kg3 {[%clk 0:01:10]}  f6 {[%clk 0:00:07]} 39. Kh4 {[%clk 0:01:10]}  Kg6 {[%clk 0:00:07]} 40. Ra4 {[%clk 0:01:09]}  Rb7 {[%clk 0:00:07]} 41. a3 {[%clk 0:01:08]}  Re7 {[%clk 0:00:07]} 42. Kg3 {[%clk 0:01:00]}  Kg5 {[%clk 0:00:05]} 43. Ra5+ {[%clk 0:00:59]}  Kg6 {[%clk 0:00:03]} 44. Ra4 {[%clk 0:00:57]}  Rd7 {[%clk 0:00:03]} 45. Kh4 {[%clk 0:00:57]}  Re7 {[%clk 0:00:03]} 46. Rb4 {[%clk 0:00:55]}  f5 {[%clk 0:00:02]} 47. Kg3 {[%clk 0:00:53]}  Re3+ {[%clk 0:00:02]} 48. Kh4 {[%clk 0:00:50]}  Rxa3 {[%clk 0:00:03]} 49. Rb8 {[%clk 0:00:50]}  Ra4+ {[%clk 0:00:03]} 50. Kg3 {[%clk 0:00:50]}  h4+ {[%clk 0:00:03]} 51. Kf3 {[%clk 0:00:50]}  Ra3+ {[%clk 0:00:03]} 52. Kf4 {[%clk 0:00:50]}  Rxh3 {[%clk 0:00:03]} 53. Rg8+ {[%clk 0:00:51]}  Kf7 {[%clk 0:00:03]} 54. Ra8 {[%clk 0:00:51]}  Ra3 {[%clk 0:00:02]} 55. Kxf5 {[%clk 0:00:50]}  h3 {[%clk 0:00:02]} 56. Kg4 {[%clk 0:00:50]}  Ke6 {[%clk 0:00:02]} 57. Re8+ {[%clk 0:00:45]}  Kd5 {[%clk 0:00:02]} 58. Rh8 {[%clk 0:00:46]}  a5 {[%clk 0:00:02]} 59. Kf4 {[%clk 0:00:47]}  Kc4 {[%clk 0:00:02]} 60. Rh5 {[%clk 0:00:48]}  Kb4 {[%clk 0:00:02]} 61. Ke4 {[%clk 0:00:48]}  Rc3 {[%clk 0:00:02]} 62. Rh8 {[%clk 0:00:48]}  a4 {[%clk 0:00:02]} 63. Kd4 {[%clk 0:00:49]}  Rg3 {[%clk 0:00:02]} 64. Rb8+ {[%clk 0:00:48]}  Ka3 {[%clk 0:00:02]} 65. Rf8 {[%clk 0:00:48]}  Kb3 {[%clk 0:00:02]} 66. Rb8+ {[%clk 0:00:48]}  Ka2 {[%clk 0:00:02]} 67. Rf8 {[%clk 0:00:49]}  Rg2 {[%clk 0:00:01]} 68. Kc3 {[%clk 0:00:48]}  h2 {[%clk 0:00:01]} 69. Rh8 {[%clk 0:00:47]}  a3 {[%clk 0:00:02]} 70. Rh7 {[%clk 0:00:44]}  Kb1 {[%clk 0:00:02]} 71. Rb7+ {[%clk 0:00:43]}  Rb2 {[%clk 0:00:02]} 72. Rf7 {[%clk 0:00:43]}  h1=Q {[%clk 0:00:02]} 73. Kd4 {[%clk 0:00:40]}  Qe1 {[%clk 0:00:02]} 74. Re7 {[%clk 0:00:00]}  Qxe7 {[%clk 0:00:02]} 0-1

[Event "December 12 Early 2023"]
[Site "https://www.chess.com"]
[Date "2023.12.12"]
[Round "4"]
[White "Marchesich, Giovanni"]
[Black "Kavyev, Ruslan"]
[Result "1/2-1/2"]
[Board "131"]
[TimeControl "180+1"]
[WhiteFideId "2824790"]
[BlackFideId "34110981"]
[WhiteElo "2414"]
[BlackElo "2604"]
[WhiteTeam "ITA"]
[BlackTeam "RUS"]
[WhiteClock "0:00:06"]
[BlackClock "0:00:13"]

1. e4 {[%clk 0:03:00]}  c5 {[%clk 0:01:49]} 2. Nf3 {[%clk 0:02:58]}  e6 {[%clk 0:01:48]} 3. d4 {[%clk 0:02:58]}  cxd4 {[%clk 0:01:49]} 4. Nxd4 {[%clk 0:02:59]}  Nc6 {[%clk 0:01:49]} 5. Nc3 {[%clk 0:02:58]}  a6 {[%clk 0:01:49]} 6. g3 {[%clk 0:02:58]}  Qc7 {[%clk 0:01:47]} 7. Bg2 {[%clk 0:02:59]}  Nf6 {[%clk 0:01:47]} 8. O-O {[%clk 0:02:59]}  d6 {[%clk 0:01:48]} 9. Re1 {[%clk 0:02:54]}  Be7 {[%clk 0:01:47]} 10. Nxc6 {[%clk 0:02:33]}  bxc6 {[%clk 0:01:46]} 11. e5 {[%clk 0:02:32]}  dxe5 {[%clk 0:01:46]} 12. Qe2 {[%clk 0:02:32]}  Nd5 {[%clk 0:01:41]} 13. Bd2 {[%clk 0:02:30]}  Rb8 {[%clk 0:01:39]} 14. b3 {[%clk 0:02:28]}  O-O {[%clk 0:01:39]} 15. Rad1 {[%clk 0:02:23]}  a5 {[%clk 0:01:36]} 16. Ne4 {[%clk 0:02:15]}  a4 {[%clk 0:01:34]} 17. c4 {[%clk 0:02:14]}  Nf6 {[%clk 0:01:32]} 18. Qf3 {[%clk 0:02:02]}  axb3 {[%clk 0:01:31]} 19. axb3 {[%clk 0:02:02]}  Nxe4 {[%clk 0:01:30]} 20. Qxe4 {[%clk 0:01:57]}  Rxb3 {[%clk 0:01:29]} 21. Ra1 {[%clk 0:01:49]}  c5 {[%clk 0:01:26]} 22. Ba5 {[%clk 0:01:46]}  Qb8 {[%clk 0:01:24]} 23. Red1 {[%clk 0:01:42]}  Bb7 {[%clk 0:01:24]} 24. Qc2 {[%clk 0:01:40]}  Bxg2 {[%clk 0:01:23]} 25. Kxg2 {[%clk 0:01:40]}  Qb7+ {[%clk 0:01:22]} 26. Kg1 {[%clk 0:01:40]}  Rb2 {[%clk 0:01:22]} 27. Qd3 {[%clk 0:01:38]}  Bf6 {[%clk 0:01:16]} 28. Qd6 {[%clk 0:01:37]}  Qf3 {[%clk 0:01:12]} 29. Qxc5 {[%clk 0:01:22]}  e4 {[%clk 0:01:10]} 30. Bb4 {[%clk 0:00:59]}  Rxb4 {[%clk 0:01:09]} 31. Qxb4 {[%clk 0:00:59]}  Bxa1 {[%clk 0:01:10]} 32. Rxa1 {[%clk 0:00:51]}  e3 {[%clk 0:01:10]} 33. Qe1 {[%clk 0:00:47]}  exf2+ {[%clk 0:01:07]} 34. Qxf2 {[%clk 0:00:47]}  Qe4 {[%clk 0:01:04]} 35. Rc1 {[%clk 0:00:45]}  Rc8 {[%clk 0:01:04]} 36. c5 {[%clk 0:00:44]}  g6 {[%clk 0:01:04]} 37. Rc2 {[%clk 0:00:38]}  Kg7 {[%clk 0:01:04]} 38. h3 {[%clk 0:00:38]}  e5 {[%clk 0:01:03]} 39. Kh2 {[%clk 0:00:38]}  h5 {[%clk 0:01:03]} 40. h4 {[%clk 0:00:37]}  Rc6 {[%clk 0:00:53]} 41. Qd2 {[%clk 0:00:34]}  Rf6 {[%clk 0:00:51]} 42. Rc3 {[%clk 0:00:21]}  Rf1 {[%clk 0:00:45]} 43. Qg2 {[%clk 0:00:21]}  Qf5 {[%clk 0:00:45]} 44. Rc2 {[%clk 0:00:19]}  Rd1 {[%clk 0:00:18]} 45. c6 {[%clk 0:00:19]}  Rd8 {[%clk 0:00:18]} 46. c7 {[%clk 0:00:19]}  Rc8 {[%clk 0:00:18]} 47. Qc6 {[%clk 0:00:17]}  e4 {[%clk 0:00:17]} 48. Qc3+ {[%clk 0:00:17]}  Kh7 {[%clk 0:00:17]} 49. Qc5 {[%clk 0:00:15]}  Qe6 {[%clk 0:00:13]} 50. Rc3 {[%clk 0:00:09]}  e3 {[%clk 0:00:10]} 51. Rxe3 {[%clk 0:00:08]}  Rxc7 {[%clk 0:00:11]} 52. Qxc7 {[%clk 0:00:03]}  Qxe3 {[%clk 0:00:11]} 53. Qxf7+ {[%clk 0:00:04]}  Kh6 {[%clk 0:00:11]} 54. Qf8+ {[%clk 0:00:04]}  Kh7 {[%clk 0:00:12]} 55. Qf7+ {[%clk 0:00:05]}  Kh8 {[%clk 0:00:12]} 56. Qf8+ {[%clk 0:00:05]}  Kh7 {[%clk 0:00:13]} 57. Qf7+ {[%clk 0:00:06]} 1/2-1/2

[Event "December 12 Early 2023"]
[Site "https://www.chess.com"]
[Date "2023.12.12"]
[Round "4"]
[White "Kim, Sergey"]
[Black "Bach Ngoc Thuy Duong"]
[Result "1-0"]
[Board "133"]
[TimeControl "180+1"]
[WhiteFideId "13700570"]
[BlackFideId "12408956"]
[WhiteElo "2598"]
[BlackElo "2413"]
[WhiteTeam "KAZ"]
[BlackTeam "VIE"]
[WhiteClock "0:00:11"]
[BlackClock "0:00:02"]

1. d4 {[%clk 0:03:00]}  d5 {[%clk 0:02:59]} 2. c4 {[%clk 0:03:01]}  e6 {[%clk 0:02:59]} 3. Nc3 {[%clk 0:03:00]}  c6 {[%clk 0:03:00]} 4. e3 {[%clk 0:03:00]}  Nf6 {[%clk 0:02:59]} 5. Nf3 {[%clk 0:03:00]}  Nbd7 {[%clk 0:02:59]} 6. Bd3 {[%clk 0:03:00]}  dxc4 {[%clk 0:02:59]} 7. Bxc4 {[%clk 0:03:00]}  b5 {[%clk 0:03:00]} 8. Bb3 {[%clk 0:03:00]}  Bb7 {[%clk 0:02:53]} 9. O-O {[%clk 0:03:00]}  a6 {[%clk 0:02:52]} 10. Qe2 {[%clk 0:02:59]}  c5 {[%clk 0:02:51]} 11. Rd1 {[%clk 0:02:58]}  Qb6 {[%clk 0:02:40]} 12. a4 {[%clk 0:02:55]}  c4 {[%clk 0:02:28]} 13. Bc2 {[%clk 0:02:48]}  b4 {[%clk 0:02:19]} 14. a5 {[%clk 0:02:49]}  Qc7 {[%clk 0:02:12]} 15. Na4 {[%clk 0:02:48]}  Rc8 {[%clk 0:01:47]} 16. Bd2 {[%clk 0:02:37]}  Ne4 {[%clk 0:01:34]} 17. Be1 {[%clk 0:02:34]}  Be7 {[%clk 0:01:25]} 18. Rdc1 {[%clk 0:01:56]}  O-O {[%clk 0:01:07]} 19. Bd1 {[%clk 0:01:47]}  Bd5 {[%clk 0:00:54]} 20. Nd2 {[%clk 0:01:31]}  Nxd2 {[%clk 0:00:32]} 21. Bxd2 {[%clk 0:01:30]}  Be4 {[%clk 0:00:31]} 22. Nb6 {[%clk 0:01:15]}  Bd3 {[%clk 0:00:22]} 23. Qxd3 {[%clk 0:00:33]}  cxd3 {[%clk 0:00:23]} 24. Nxc8 {[%clk 0:00:31]}  Qd8 {[%clk 0:00:20]} 25. Bf3 {[%clk 0:00:29]}  Nf6 {[%clk 0:00:20]} 26. Nb6 {[%clk 0:00:27]}  Nd5 {[%clk 0:00:18]} 27. Bxd5 {[%clk 0:00:25]}  exd5 {[%clk 0:00:19]} 28. Rc8 {[%clk 0:00:23]}  Qd6 {[%clk 0:00:19]} 29. Rac1 {[%clk 0:00:22]}  g6 {[%clk 0:00:18]} 30. R8c7 {[%clk 0:00:21]}  Bd8 {[%clk 0:00:18]} 31. R7c6 {[%clk 0:00:20]}  Qe7 {[%clk 0:00:17]} 32. Nxd5 {[%clk 0:00:20]}  Qb7 {[%clk 0:00:17]} 33. Bxb4 {[%clk 0:00:18]}  Re8 {[%clk 0:00:16]} 34. h3 {[%clk 0:00:15]}  Kg7 {[%clk 0:00:14]} 35. Nb6 {[%clk 0:00:15]}  Be7 {[%clk 0:00:12]} 36. Rc7 {[%clk 0:00:15]}  Qe4 {[%clk 0:00:09]} 37. Bd2 {[%clk 0:00:12]}  Bd8 {[%clk 0:00:08]} 38. R7c6 {[%clk 0:00:12]}  Bxb6 {[%clk 0:00:08]} 39. axb6 {[%clk 0:00:12]}  Rb8 {[%clk 0:00:07]} 40. f3 {[%clk 0:00:12]}  Qe7 {[%clk 0:00:07]} 41. e4 {[%clk 0:00:12]}  Qd7 {[%clk 0:00:06]} 42. d5 {[%clk 0:00:12]}  Kg8 {[%clk 0:00:05]} 43. Be3 {[%clk 0:00:12]}  Qe7 {[%clk 0:00:05]} 44. Rd1 {[%clk 0:00:12]}  Qb4 {[%clk 0:00:05]} 45. Rxd3 {[%clk 0:00:12]}  Qxb2 {[%clk 0:00:05]} 46. Kh2 {[%clk 0:00:12]}  Qb1 {[%clk 0:00:05]} 47. Rdc3 {[%clk 0:00:11]}  a5 {[%clk 0:00:05]} 48. d6 {[%clk 0:00:12]}  Qb5 {[%clk 0:00:03]} 49. d7 {[%clk 0:00:12]}  Qe5+ {[%clk 0:00:03]} 50. f4 {[%clk 0:00:11]}  Qxe4 {[%clk 0:00:02]} 51. Rc8+ {[%clk 0:00:11]}  Kg7 {[%clk 0:00:02]} 52. Rxb8 {[%clk 0:00:11]} 1-0